Workbook

Sheet Toullab
A1: ت | B1: اسم الطالب الرباعي | C1: الملاحظات | D1: النوع | E1: الجنسية | F1: القسم | G1: الصف
A2: =IF(B2="","",MAX($A$1:A1)+1) -> 1 | B2: ابا ذر صالح حسن علكم | C2: معيد مطالب جميع المواد | D2: أنثى | E2: عراقية | F2: الارشاد الزراعي ونقل التقنيات | G2: الاول
A3: =IF(B3="","",MAX($A$1:A2)+1) -> 2 | B3: احمد حسن عنجور شمام | D3: ذكر | F3: الاقتصاد الزراعي | G3: الثاني
A4: =IF(B4="","",MAX($A$1:A3)+1) -> 3 | B4: احمد رافد عبد الكريم عبد العزيز | D4: ذكر | F4: الانتاج الحيواني | G4: الاول
A5: =IF(B5="","",MAX($A$1:A4)+1) -> 4 | B5: احمد عباس محي عبادي | D5: أنثى | F5: الارشاد الزراعي ونقل التقنيات | G5: الاول
A6: =IF(B6="","",MAX($A$1:A5)+1) -> 5 | B6: احمد محمد فليح عبيد | D6: أنثى | F6: المحاصيل الحقلية | G6: الاول
A7: =IF(B7="","",MAX($A$1:A6)+1) -> 6 | B7: احمد مشتاق عبد الهادي سلمان | D7: ذكر | F7: المكائن والالات الزراعية | G7: الثاني
A8: =IF(B8="","",MAX($A$1:A7)+1) -> 7 | B8: احمد نبز محمد امين فرج | D8: أنثى | F8: علوم الاغذية | G8: الثاني
A9: =IF(B9="","",MAX($A$1:A8)+1) -> 8 | B9: اسراء عباس مسلم غلام | C9: معيد مطالب جميع المواد | D9: ذكر | E9: عراقية | F9: علوم التربة والموارد المائية | G9: الثاني
A10: =IF(B10="","",MAX($A$1:A9)+1) -> 9 | B10: الحسن وليد عبد الرزاق حبيب | D10: أنثى | F10: مكافحة التصحر | G10: الثاني
A11: =IF(B11="","",MAX($A$1:A10)+1) -> 10 | B11: الصادق ياسر عامر صادق | D11: ذكر | F11: وقاية النبات | G11: الثاني
A12: =IF(B12="","",MAX($A$1:A11)+1) -> 11 | B12: امجد داود سلمان دانه | D12: ذكر | F12: الارشاد الزراعي ونقل التقنيات | G12: الاول
A13: =IF(B13="","",MAX($A$1:A12)+1) -> 12 | B13: امجد هادي جاسم محمد | D13: ذكر | F13: الارشاد الزراعي ونقل التقنيات | G13: الاول
A14: =IF(B14="","",MAX($A$1:A13)+1) -> 13 | B14: امير باسم عباس غانم | C14: معيد مطالب // رسم هندسي,احصاء وتصميم تجارب,البستنة وهندسة الحدائق , لغة انكليزية2 | D14: أنثى | E14: عراقية | F14: الانتاج الحيواني | G14: الثالث
A15: =IF(B15="","",MAX($A$1:A14)+1) -> 14 | B15: ايسر زكي غزاي محمد | C15: معيد مطالب جميع المواد | D15: أنثى | E15: عراقية | F15: الارشاد الزراعي ونقل التقنيات | G15: الاول
A16: =IF(B16="","",MAX($A$1:A15)+1) -> 15 | B16: ايه سعد سبع خميس | D16: أنثى | F16: الاقتصاد الزراعي | G16: الاول
A17: =IF(B17="","",MAX($A$1:A16)+1) -> 16 | B17: ايوب عدنان داود فرحان | D17: أنثى | F17: الانتاج الحيواني | G17: الاول
A18: =IF(B18="","",MAX($A$1:A17)+1) -> 17 | B18: ايوب عبد المحسن جبوري مجحم | D18: أنثى | F18: الارشاد الزراعي ونقل التقنيات | G18: الاول
A19: =IF(B19="","",MAX($A$1:A18)+1) -> 18 | B19: باقر حسن مهنا شهاب | D19: أنثى | F19: علوم التربة والموارد المائية | G19: الرابع
A20: =IF(B20="","",MAX($A$1:A19)+1) -> 19 | B20: بحر رافد بحر محمد | D20: ذكر | F20: مكافحة التصحر | G20: الرابع
A21: =IF(B21="","",MAX($A$1:A20)+1) -> 20 | B21: براق ستار حبيب جاسم | C21: معيد مطالب جميع المواد | D21: أنثى | E21: عراقية | F21: وقاية النبات | G21: الرابع
A22: =IF(B22="","",MAX($A$1:A21)+1) -> 21 | B22: حسن علي كريم حمود | D22: ذكر | F22: الارشاد الزراعي ونقل التقنيات | G22: الرابع
A23: =IF(B23="","",MAX($A$1:A22)+1) -> 22 | B23: حسن فايق علاي حسين | D23: ذكر | F23: الاقتصاد الزراعي | G23: الرابع
A24: =IF(B24="","",MAX($A$1:A23)+1) -> 23 | B24: حسن محمد رسم الله علوان | D24: أنثى | F24: الانتاج الحيواني | G24: الرابع
A25: =IF(B25="","",MAX($A$1:A24)+1) -> 24 | B25: حسن هلال نهير صياح | D25: ذكر | F25: البستنة وهندسة الحدائق | G25: الرابع
A26: =IF(B26="","",MAX($A$1:A25)+1) -> 25 | B26: حسين اكرم اسماعيل حافظ | D26: أنثى | F26: المحاصيل الحقلية | G26: الثاني
A27: =IF(B27="","",MAX($A$1:A26)+1) -> 26 | B27: حمدي محمد جعفر حسن | D27: ذكر | F27: المكائن والالات الزراعية | G27: الثاني
A28: =IF(B28="","",MAX($A$1:A27)+1) -> 27 | B28: حمزة عماد جميل سلمان | C28: معيد مطالب جميع المواد | D28: أنثى | E28: عراقية | F28: علوم الاغذية | G28: الثاني
A29: =IF(B29="","",MAX($A$1:A28)+1) -> 28 | B29: حمزة فاهم عبد زيد دبيس | D29: أنثى | F29: علوم التربة والموارد المائية | G29: الثاني
A30: =IF(B30="","",MAX($A$1:A29)+1) -> 29 | B30: حمزه جاسم دعبول عليوي | D30: ذكر | F30: مكافحة التصحر | G30: الثاني
A31: =IF(B31="","",MAX($A$1:A30)+1) -> 30 | B31: حوراء حسين علي حيدر | D31: ذكر | F31: وقاية النبات | G31: الثاني
A32: =IF(B32="","",MAX($A$1:A31)+1) -> 31 | B32: حيدر نذير عزيز حسين | C32: معيد مطالب جميع المواد | D32: ذكر | F32: الارشاد الزراعي ونقل التقنيات | G32: الثاني
A33: =IF(B33="","",MAX($A$1:A32)+1) -> 32 | B33: حيدر حسن عبد الله جاسم | D33: أنثى | F33: الاقتصاد الزراعي | G33: الاول
A34: =IF(B34="","",MAX($A$1:A33)+1) -> 33 | B34: حيدر علي خضير عطيه | C34: معاد الى الدراسة بالامر 855 في 2020/2/16 مستوفي _ورش هندسية1/ حقوق انسان وحريات عامة/تطبيقات حاسوب1 | D34: أنثى | E34: عراقية | F34: الانتاج الحيواني | G34: الاول
A35: =IF(B35="","",MAX($A$1:A34)+1) -> 34 | B35: حيدر محمود محمد علي معصوم | D35: ذكر | F35: البستنة وهندسة الحدائق | G35: الاول
A36: =IF(B36="","",MAX($A$1:A35)+1) -> 35 | B36: حيدر نجم عبد علي حسين | C36: معيد مطالب جميع المواد | D36: أنثى | E36: عراقية | F36: المحاصيل الحقلية | G36: الاول
A37: =IF(B37="","",MAX($A$1:A36)+1) -> 36 | B37: رأفت عماد احمد علي | C37: معيد مطالب جميع المواد | D37: أنثى | E37: عراقية | F37: المكائن والالات الزراعية | G37: الاول
A38: =IF(B38="","",MAX($A$1:A37)+1) -> 37 | B38: رقيه محمد صالح عبد | D38: ذكر | F38: علوم الاغذية | G38: الثالث
A39: =IF(B39="","",MAX($A$1:A38)+1) -> 38 | B39: زهراء احمد حسين كاظم | C39: معيد مطالب جميع المواد | D39: ذكر | E39: عراقية | F39: علوم التربة والموارد المائية | G39: الثالث
A40: =IF(B40="","",MAX($A$1:A39)+1) -> 39 | B40: زهراء حسين محسن زرزور | D40: أنثى | F40: مكافحة التصحر | G40: الثالث
A41: =IF(B41="","",MAX($A$1:A40)+1) -> 40 | B41: زهراء زياد طارق نعمان | D41: ذكر | F41: وقاية النبات | G41: الثالث
A42: =IF(B42="","",MAX($A$1:A41)+1) -> 41 | B42: زينب حسن علي فرحان | D42: أنثى | F42: المحاصيل الحقلية | G42: الثالث
A43: =IF(B43="","",MAX($A$1:A42)+1) -> 42 | B43: زينب نعمان منذر كاظم | D43: ذكر | F43: المكائن والالات الزراعية | G43: الثالث
A44: =IF(B44="","",MAX($A$1:A43)+1) -> 43 | B44: ساره فارس عبد الامير | C44: معاد الى الدراسة بالامر5960 في 2019/12/16//مطالب جميع المواد | D44: أنثى | E44: عراقية | F44: علوم الاغذية | G44: الثالث
A45: =IF(B45="","",MAX($A$1:A44)+1) -> 44 | B45: سجاد عبد القادر عبيد حسين | C45: معيد مطالب //رياضيات,المساحة وتسوية وتعديل اراضي,احصاء وتصميم تجارب,البستنة وهندسة الحدائق | D45: أنثى | E45: عراقية | F45: الاقتصاد الزراعي | G45: الثالث
A46: =IF(B46="","",MAX($A$1:A45)+1) -> 45 | B46: سجاد وليد جبار عباس | D46: ذكر | F46: الانتاج الحيواني | G46: الثالث
A47: =IF(B47="","",MAX($A$1:A46)+1) -> 46 | B47: ابا ذر صالح حسن علكم | C47: معيد مطالب جميع المواد | D47: ذكر | E47: عراقية | F47: الارشاد الزراعي ونقل التقنيات | G47: الاول
A48: =IF(B48="","",MAX($A$1:A47)+1) -> 47 | B48: احمد حسن عنجور شمام | D48: ذكر | F48: الاقتصاد الزراعي | G48: الثاني
A49: =IF(B49="","",MAX($A$1:A48)+1) -> 48 | B49: احمد رافد عبد الكريم عبد العزيز | D49: ذكر | F49: الانتاج الحيواني | G49: الاول
A50: =IF(B50="","",MAX($A$1:A49)+1) -> 49 | B50: احمد عباس محي عبادي | D50: أنثى | F50: الارشاد الزراعي ونقل التقنيات | G50: الاول
A51: =IF(B51="","",MAX($A$1:A50)+1) -> 50 | B51: احمد محمد فليح عبيد | D51: أنثى | F51: المحاصيل الحقلية | G51: الاول
A52: =IF(B52="","",MAX($A$1:A51)+1) -> 51 | B52: احمد مشتاق عبد الهادي سلمان | D52: ذكر | F52: المكائن والالات الزراعية | G52: الثاني
A53: =IF(B53="","",MAX($A$1:A52)+1) -> 52 | B53: احمد نبز محمد امين فرج | D53: أنثى | F53: علوم الاغذية | G53: الثاني
A54: =IF(B54="","",MAX($A$1:A53)+1) -> 53 | B54: اسراء عباس مسلم غلام | C54: معيد مطالب جميع المواد | D54: ذكر | E54: عراقية | F54: علوم التربة والموارد المائية | G54: الثاني
A55: =IF(B55="","",MAX($A$1:A54)+1) -> 54 | B55: الحسن وليد عبد الرزاق حبيب | D55: أنثى | F55: مكافحة التصحر | G55: الثاني
A56: =IF(B56="","",MAX($A$1:A55)+1) -> 55 | B56: الصادق ياسر عامر صادق | D56: ذكر | F56: وقاية النبات | G56: الثاني
A57: =IF(B57="","",MAX($A$1:A56)+1) -> 56 | B57: امجد داود سلمان دانه | D57: ذكر | F57: الارشاد الزراعي ونقل التقنيات | G57: الاول
A58: =IF(B58="","",MAX($A$1:A57)+1) -> 57 | B58: امجد هادي جاسم محمد | D58: ذكر | F58: الارشاد الزراعي ونقل التقنيات | G58: الاول
A59: =IF(B59="","",MAX($A$1:A58)+1) -> 58 | B59: امير باسم عباس غانم | C59: معيد مطالب // رسم هندسي,احصاء وتصميم تجارب,البستنة وهندسة الحدائق , لغة انكليزية2 | D59: أنثى | E59: عراقية | F59: الانتاج الحيواني | G59: الثالث
A60: =IF(B60="","",MAX($A$1:A59)+1) -> 59 | B60: ايسر زكي غزاي محمد | C60: معيد مطالب جميع المواد | D60: أنثى | E60: عراقية | F60: الارشاد الزراعي ونقل التقنيات | G60: الاول
A61: =IF(B61="","",MAX($A$1:A60)+1) -> 60 | B61: ايه سعد سبع خميس | D61: أنثى | F61: الاقتصاد الزراعي | G61: الاول
A62: =IF(B62="","",MAX($A$1:A61)+1) -> 61 | B62: ايوب عدنان داود فرحان | D62: أنثى | F62: الانتاج الحيواني | G62: الاول
A63: =IF(B63="","",MAX($A$1:A62)+1) -> 62 | B63: ايوب عبد المحسن جبوري مجحم | D63: أنثى | F63: الارشاد الزراعي ونقل التقنيات | G63: الاول
A64: =IF(B64="","",MAX($A$1:A63)+1) -> 63 | B64: باقر حسن مهنا شهاب | D64: أنثى | F64: علوم التربة والموارد المائية | G64: الرابع
A65: =IF(B65="","",MAX($A$1:A64)+1) -> 64 | B65: بحر رافد بحر محمد | D65: ذكر | F65: مكافحة التصحر | G65: الرابع
A66: =IF(B66="","",MAX($A$1:A65)+1) -> 65 | B66: براق ستار حبيب جاسم | C66: معيد مطالب جميع المواد | D66: أنثى | E66: عراقية | F66: وقاية النبات | G66: الرابع
A67: =IF(B67="","",MAX($A$1:A66)+1) -> 66 | B67: حسن علي كريم حمود | D67: ذكر | F67: الارشاد الزراعي ونقل التقنيات | G67: الرابع
A68: =IF(B68="","",MAX($A$1:A67)+1) -> 67 | B68: حسن فايق علاي حسين | D68: ذكر | F68: الاقتصاد الزراعي | G68: الرابع
A69: =IF(B69="","",MAX($A$1:A68)+1) -> 68 | B69: حسن محمد رسم الله علوان | D69: أنثى | F69: الانتاج الحيواني | G69: الرابع
A70: =IF(B70="","",MAX($A$1:A69)+1) -> 69 | B70: حسن هلال نهير صياح | D70: ذكر | F70: البستنة وهندسة الحدائق | G70: الرابع
A71: =IF(B71="","",MAX($A$1:A70)+1) -> 70 | B71: حسين اكرم اسماعيل حافظ | D71: أنثى | F71: المحاصيل الحقلية | G71: الثاني
A72: =IF(B72="","",MAX($A$1:A71)+1) -> 71 | B72: حمدي محمد جعفر حسن | D72: ذكر | F72: المكائن والالات الزراعية | G72: الثاني
A73: =IF(B73="","",MAX($A$1:A72)+1) -> 72 | B73: حمزة عماد جميل سلمان | C73: معيد مطالب جميع المواد | D73: أنثى | E73: عراقية | F73: علوم الاغذية | G73: الثاني
A74: =IF(B74="","",MAX($A$1:A73)+1) -> 73 | B74: حمزة فاهم عبد زيد دبيس | D74: أنثى | F74: علوم التربة والموارد المائية | G74: الثاني
A75: =IF(B75="","",MAX($A$1:A74)+1) -> 74 | B75: حمزه جاسم دعبول عليوي | D75: ذكر | F75: مكافحة التصحر | G75: الثاني
A76: =IF(B76="","",MAX($A$1:A75)+1) -> 75 | B76: حوراء حسين علي حيدر | D76: ذكر | F76: وقاية النبات | G76: الثاني
A77: =IF(B77="","",MAX($A$1:A76)+1) -> 76 | B77: حيدر نذير عزيز حسين | C77: معيد مطالب جميع المواد | D77: ذكر | F77: الارشاد الزراعي ونقل التقنيات | G77: الثاني
A78: =IF(B78="","",MAX($A$1:A77)+1) -> 77 | B78: حيدر حسن عبد الله جاسم | D78: أنثى | F78: الاقتصاد الزراعي | G78: الاول
A79: =IF(B79="","",MAX($A$1:A78)+1) -> 78 | B79: حيدر علي خضير عطيه | C79: معاد الى الدراسة بالامر 855 في 2020/2/16 مستوفي _ورش هندسية1/ حقوق انسان وحريات عامة/تطبيقات حاسوب1 | D79: أنثى | E79: عراقية | F79: الانتاج الحيواني | G79: الاول
A80: =IF(B80="","",MAX($A$1:A79)+1) -> 79 | B80: حيدر محمود محمد علي معصوم | D80: ذكر | F80: البستنة وهندسة الحدائق | G80: الاول
A81: =IF(B81="","",MAX($A$1:A80)+1) -> 80 | B81: حيدر نجم عبد علي حسين | C81: معيد مطالب جميع المواد | D81: أنثى | E81: عراقية | F81: المحاصيل الحقلية | G81: الاول
A82: =IF(B82="","",MAX($A$1:A81)+1) -> 81 | B82: رأفت عماد احمد علي | C82: معيد مطالب جميع المواد | D82: أنثى | E82: عراقية | F82: المكائن والالات الزراعية | G82: الاول
A83: =IF(B83="","",MAX($A$1:A82)+1) -> 82 | B83: رقيه محمد صالح عبد | D83: ذكر | F83: علوم الاغذية | G83: الثالث
A84: =IF(B84="","",MAX($A$1:A83)+1) -> 83 | B84: زهراء احمد حسين كاظم | C84: معيد مطالب جميع المواد | D84: ذكر | E84: عراقية | F84: علوم التربة والموارد المائية | G84: الثالث
A85: =IF(B85="","",MAX($A$1:A84)+1) -> 84 | B85: زهراء حسين محسن زرزور | D85: أنثى | F85: مكافحة التصحر | G85: الثالث
A86: =IF(B86="","",MAX($A$1:A85)+1) -> 85 | B86: زهراء زياد طارق نعمان | D86: ذكر | F86: وقاية النبات | G86: الثالث
A87: =IF(B87="","",MAX($A$1:A86)+1) -> 86 | B87: زينب حسن علي فرحان | D87: أنثى | F87: المحاصيل الحقلية | G87: الثالث
A88: =IF(B88="","",MAX($A$1:A87)+1) -> 87 | B88: زينب نعمان منذر كاظم | D88: ذكر | F88: المكائن والالات الزراعية | G88: الثالث
A89: =IF(B89="","",MAX($A$1:A88)+1) -> 88 | B89: ساره فارس عبد الامير | C89: معاد الى الدراسة بالامر5960 في 2019/12/16//مطالب جميع المواد | D89: أنثى | E89: عراقية | F89: علوم الاغذية | G89: الثالث
A90: =IF(B90="","",MAX($A$1:A89)+1) -> 89 | B90: سجاد عبد القادر عبيد حسين | C90: معيد مطالب //رياضيات,المساحة وتسوية وتعديل اراضي,احصاء وتصميم تجارب,البستنة وهندسة الحدائق | D90: أنثى | E90: عراقية | F90: الاقتصاد الزراعي | G90: الثالث
A91: =IF(B91="","",MAX($A$1:A90)+1) -> 90 | B91: سجاد وليد جبار عباس | D91: ذكر | F91: الانتاج الحيواني | G91: الثالث
A92: =IF(B92="","",MAX($A$1:A91)+1) -> 91 | B92: ابا ذر صالح حسن علكم | C92: معيد مطالب جميع المواد | D92: ذكر | E92: عراقية | F92: الارشاد الزراعي ونقل التقنيات | G92: الاول
A93: =IF(B93="","",MAX($A$1:A92)+1) -> 92 | B93: احمد حسن عنجور شمام | D93: ذكر | F93: الاقتصاد الزراعي | G93: الثاني
A94: =IF(B94="","",MAX($A$1:A93)+1) -> 93 | B94: احمد رافد عبد الكريم عبد العزيز | D94: ذكر | F94: الانتاج الحيواني | G94: الاول
A95: =IF(B95="","",MAX($A$1:A94)+1) -> 94 | B95: احمد عباس محي عبادي | D95: أنثى | F95: الارشاد الزراعي ونقل التقنيات | G95: الاول
A96: =IF(B96="","",MAX($A$1:A95)+1) -> 95 | B96: احمد محمد فليح عبيد | D96: أنثى | F96: المحاصيل الحقلية | G96: الاول
A97: =IF(B97="","",MAX($A$1:A96)+1) -> 96 | B97: احمد مشتاق عبد الهادي سلمان | D97: ذكر | F97: المكائن والالات الزراعية | G97: الثاني
A98: =IF(B98="","",MAX($A$1:A97)+1) -> 97 | B98: احمد نبز محمد امين فرج | D98: أنثى | F98: علوم الاغذية | G98: الثاني
A99: =IF(B99="","",MAX($A$1:A98)+1) -> 98 | B99: اسراء عباس مسلم غلام | C99: معيد مطالب جميع المواد | D99: ذكر | E99: عراقية | F99: علوم التربة والموارد المائية | G99: الثاني
A100: =IF(B100="","",MAX($A$1:A99)+1) -> 99 | B100: الحسن وليد عبد الرزاق حبيب | D100: أنثى | F100: مكافحة التصحر | G100: الثاني
A101: =IF(B101="","",MAX($A$1:A100)+1) -> 100 | B101: الصادق ياسر عامر صادق | D101: ذكر | F101: وقاية النبات | G101: الثاني
A102: =IF(B102="","",MAX($A$1:A101)+1) -> 101 | B102: امجد داود سلمان دانه | D102: ذكر | F102: الارشاد الزراعي ونقل التقنيات | G102: الاول
A103: =IF(B103="","",MAX($A$1:A102)+1) -> 102 | B103: امجد هادي جاسم محمد | D103: ذكر | F103: الارشاد الزراعي ونقل التقنيات | G103: الاول
A104: =IF(B104="","",MAX($A$1:A103)+1) -> 103 | B104: امير باسم عباس غانم | C104: معيد مطالب // رسم هندسي,احصاء وتصميم تجارب,البستنة وهندسة الحدائق , لغة انكليزية2 | D104: أنثى | E104: عراقية | F104: الانتاج الحيواني | G104: الثالث
A105: =IF(B105="","",MAX($A$1:A104)+1) -> 104 | B105: ايسر زكي غزاي محمد | C105: معيد مطالب جميع المواد | D105: أنثى | E105: عراقية | F105: الارشاد الزراعي ونقل التقنيات | G105: الاول
A106: =IF(B106="","",MAX($A$1:A105)+1) -> 105 | B106: ايه سعد سبع خميس | D106: أنثى | F106: الاقتصاد الزراعي | G106: الاول
A107: =IF(B107="","",MAX($A$1:A106)+1) -> 106 | B107: ايوب عدنان داود فرحان | D107: أنثى | F107: الانتاج الحيواني | G107: الاول
A108: =IF(B108="","",MAX($A$1:A107)+1) -> 107 | B108: ايوب عبد المحسن جبوري مجحم | D108: أنثى | F108: الارشاد الزراعي ونقل التقنيات | G108: الاول
A109: =IF(B109="","",MAX($A$1:A108)+1) -> 108 | B109: باقر حسن مهنا شهاب | D109: أنثى | F109: علوم التربة والموارد المائية | G109: الرابع
A110: =IF(B110="","",MAX($A$1:A109)+1) -> 109 | B110: بحر رافد بحر محمد | D110: ذكر | F110: مكافحة التصحر | G110: الرابع
A111: =IF(B111="","",MAX($A$1:A110)+1) -> 110 | B111: براق ستار حبيب جاسم | C111: معيد مطالب جميع المواد | D111: أنثى | E111: عراقية | F111: وقاية النبات | G111: الرابع
A112: =IF(B112="","",MAX($A$1:A111)+1) -> 111 | B112: حسن علي كريم حمود | D112: ذكر | F112: الارشاد الزراعي ونقل التقنيات | G112: الرابع
A113: =IF(B113="","",MAX($A$1:A112)+1) -> 112 | B113: حسن فايق علاي حسين | D113: ذكر | F113: الاقتصاد الزراعي | G113: الرابع
A114: =IF(B114="","",MAX($A$1:A113)+1) -> 113 | B114: حسن محمد رسم الله علوان | D114: أنثى | F114: الانتاج الحيواني | G114: الرابع
A115: =IF(B115="","",MAX($A$1:A114)+1) -> 114 | B115: حسن هلال نهير صياح | D115: ذكر | F115: البستنة وهندسة الحدائق | G115: الرابع
A116: =IF(B116="","",MAX($A$1:A115)+1) -> 115 | B116: حسين اكرم اسماعيل حافظ | D116: أنثى | F116: المحاصيل الحقلية | G116: الثاني
A117: =IF(B117="","",MAX($A$1:A116)+1) -> 116 | B117: حمدي محمد جعفر حسن | D117: ذكر | F117: المكائن والالات الزراعية | G117: الثاني
A118: =IF(B118="","",MAX($A$1:A117)+1) -> 117 | B118: حمزة عماد جميل سلمان | C118: معيد مطالب جميع المواد | D118: أنثى | E118: عراقية | F118: علوم الاغذية | G118: الثاني
A119: =IF(B119="","",MAX($A$1:A118)+1) -> 118 | B119: حمزة فاهم عبد زيد دبيس | D119: أنثى | F119: علوم التربة والموارد المائية | G119: الثاني
A120: =IF(B120="","",MAX($A$1:A119)+1) -> 119 | B120: حمزه جاسم دعبول عليوي | D120: ذكر | F120: مكافحة التصحر | G120: الثاني
A121: =IF(B121="","",MAX($A$1:A120)+1) -> 120 | B121: حوراء حسين علي حيدر | D121: ذكر | F121: وقاية النبات | G121: الثاني
A122: =IF(B122="","",MAX($A$1:A121)+1) -> 121 | B122: حيدر نذير عزيز حسين | C122: معيد مطالب جميع المواد | D122: ذكر | F122: الارشاد الزراعي ونقل التقنيات | G122: الثاني
A123: =IF(B123="","",MAX($A$1:A122)+1) -> 122 | B123: حيدر حسن عبد الله جاسم | D123: أنثى | F123: الاقتصاد الزراعي | G123: الاول
A124: =IF(B124="","",MAX($A$1:A123)+1) -> 123 | B124: حيدر علي خضير عطيه | C124: معاد الى الدراسة بالامر 855 في 2020/2/16 مستوفي _ورش هندسية1/ حقوق انسان وحريات عامة/تطبيقات حاسوب1 | D124: أنثى | E124: عراقية | F124: الانتاج الحيواني | G124: الاول
A125: =IF(B125="","",MAX($A$1:A124)+1) -> 124 | B125: حيدر محمود محمد علي معصوم | D125: ذكر | F125: البستنة وهندسة الحدائق | G125: الاول
A126: =IF(B126="","",MAX($A$1:A125)+1) -> 125 | B126: حيدر نجم عبد علي حسين | C126: معيد مطالب جميع المواد | D126: أنثى | E126: عراقية | F126: المحاصيل الحقلية | G126: الاول
A127: =IF(B127="","",MAX($A$1:A126)+1) -> 126 | B127: رأفت عماد احمد علي | C127: معيد مطالب جميع المواد | D127: أنثى | E127: عراقية | F127: المكائن والالات الزراعية | G127: الاول
A128: =IF(B128="","",MAX($A$1:A127)+1) -> 127 | B128: رقيه محمد صالح عبد | D128: ذكر | F128: علوم الاغذية | G128: الثالث
A129: =IF(B129="","",MAX($A$1:A128)+1) -> 128 | B129: زهراء احمد حسين كاظم | C129: معيد مطالب جميع المواد | D129: ذكر | E129: عراقية | F129: علوم التربة والموارد المائية | G129: الثالث
A130: =IF(B130="","",MAX($A$1:A129)+1) -> 129 | B130: زهراء حسين محسن زرزور | D130: أنثى | F130: مكافحة التصحر | G130: الثالث
A131: =IF(B131="","",MAX($A$1:A130)+1) -> 130 | B131: زهراء زياد طارق نعمان | D131: ذكر | F131: وقاية النبات | G131: الثالث
A132: =IF(B132="","",MAX($A$1:A131)+1) -> 131 | B132: زينب حسن علي فرحان | D132: أنثى | F132: المحاصيل الحقلية | G132: الثالث
A133: =IF(B133="","",MAX($A$1:A132)+1) -> 132 | B133: زينب نعمان منذر كاظم | D133: ذكر | F133: المكائن والالات الزراعية | G133: الثالث
A134: =IF(B134="","",MAX($A$1:A133)+1) -> 133 | B134: ساره فارس عبد الامير | C134: معاد الى الدراسة بالامر5960 في 2019/12/16//مطالب جميع المواد | D134: أنثى | E134: عراقية | F134: علوم الاغذية | G134: الثالث
A135: =IF(B135="","",MAX($A$1:A134)+1) -> 134 | B135: سجاد عبد القادر عبيد حسين | C135: معيد مطالب //رياضيات,المساحة وتسوية وتعديل اراضي,احصاء وتصميم تجارب,البستنة وهندسة الحدائق | D135: أنثى | E135: عراقية | F135: الاقتصاد الزراعي | G135: الثالث
A136: =IF(B136="","",MAX($A$1:A135)+1) -> 135 | B136: سجاد وليد جبار عباس | D136: ذكر | F136: الانتاج الحيواني | G136: الثالث

Sheet Statics
A1: القسم العلمي | C1: الصف الاول | E1: المجموع | F1: الصف الثاني | H1: المجموع | I1: الصف الثالث | K1: المجموع | L1: الصف الرابع | N1: المجموع | O1: المجموع
C2: ذكر | D2: انثى | F2: ذكر | G2: انثى | I2: ذكر | J2: انثى | L2: ذكر | M2: انثى | O2: ذكر | P2: انثى
A4: الارشاد الزراعي ونقل التقنيات | C4: 8 | D4: 10 | E4: =SUM(C4:D4) -> 18 | F4: 3 | G4: 0 | H4: =SUM(F4:G4) -> 3 | I4: 0 | J4: 0 | K4: =SUM(I4:J4) -> 0 | L4: 3 | M4: 0 | N4: =SUM(L4:M4) -> 3 | O4: =SUM(C4,F4,I4,L4) -> 14 | P4: =SUM(D4,G4,J4,M4) -> 10
A5: الاقتصاد الزراعي | C5: 0 | D5: 6 | E5: =SUM(C5:D5) -> 6 | F5: 3 | G5: 0 | H5: =SUM(F5:G5) -> 3 | I5: 0 | J5: 3 | K5: =SUM(I5:J5) -> 3 | L5: 3 | M5: 0 | N5: =SUM(L5:M5) -> 3 | O5: =SUM(C5,F5,I5,L5) -> 6 | P5: =SUM(D5,G5,J5,M5) -> 9
A6: الانتاج الحيواني | C6: 3 | D6: 6 | E6: 9 | F6: 0 | G6: 0 | H6: 0 | I6: 2 | J6: 3 | K6: 5 | L6: 0 | M6: 3 | N6: 3 | O6: 5 | P6: 12
A7: البستنة وهندسة الحدائق | C7: 3 | D7: 0 | E7: 3 | F7: 0 | G7: 0 | H7: 0 | I7: 0 | J7: 0 | K7: 0 | L7: 3 | M7: 0 | N7: 3 | O7: 6 | P7: 0
A8: المحاصيل الحقلية | C8: 0 | D8: 6 | E8: 6 | F8: 0 | G8: 3 | H8: 3 | I8: 0 | J8: 3 | K8: 3 | L8: 0 | M8: 0 | N8: 0 | O8: 0 | P8: 12
A9: المكائن والالات الزراعية | C9: 0 | D9: 3 | E9: 3 | F9: 6 | G9: 0 | H9: 6 | I9: 3 | J9: 0 | K9: 3 | L9: 0 | M9: 0 | N9: 0 | O9: 9 | P9: 3
A10: علوم الاغذية | C10: 0 | D10: 0 | E10: 0 | F10: 0 | G10: 6 | H10: 6 | I10: 3 | J10: 3 | K10: 6 | L10: 0 | M10: 0 | N10: 0 | O10: 3 | P10: 9
A11: علوم التربة والموارد المائية | C11: 0 | D11: 0 | E11: 0 | F11: 3 | G11: 3 | H11: 6 | I11: 3 | J11: 0 | K11: 3 | L11: 0 | M11: 3 | N11: 3 | O11: 6 | P11: 6
A12: مكافحة التصحر | C12: 0 | D12: 0 | E12: 0 | F12: 3 | G12: 3 | H12: 6 | I12: 0 | J12: 3 | K12: 3 | L12: 3 | M12: 0 | N12: 3 | O12: 6 | P12: 6
A13: وقاية النبات | C13: 0 | D13: 0 | E13: 0 | F13: 6 | G13: 0 | H13: 6 | I13: 3 | J13: 0 | K13: 3 | L13: 0 | M13: 3 | N13: 3 | O13: 9 | P13: 3
A14: المجموع | C14: =SUM(C4:C13) -> 14 | D14: =SUM(D4:D13) -> 31 | E14: 45 | F14: 24 | G14: 15 | H14: 39 | I14: 14 | J14: 15 | K14: 29 | L14: 12 | M14: 9 | N14: 21 | O14: 64 | P14: 70
